bitfinex-derivatives/quotes_SOLF0:USTF0_20250117
["timestamp","ask_amount","ask_price","bid_price","bid_amount"]
[1737118947934,2.9107,221.42,221.32,4.84]
[1737118948939,4.517,221.41,221.34,4.5183]
[1737118949627,4.5171,221.4,221.34,4.5183]
[1737118949835,2.9107,221.42,221.34,4.5183]
[1737118950139,4.537,221.77,221.38,10.83948716]
[1737118950337,10.83948716,221.54,221.38,10.83948716]
[1737118950534,4.5152,221.5,221.38,10.83948716]
[1737118950739,10.83948716,221.54,221.42,4.5166]
[1737118951136,10.83948716,221.54,221.38,10.83948716]
[1737118951336,10.83948716,221.55,221.41,10.83948716]
[1737118951636,10.83948716,221.55,221.41,15.67948716]
[1737118952036,4.5149,221.51,221.42,4.5166]
[1737118952231,10.83948716,221.55,221.41,15.67948716]
[1737118952641,4.5154,221.49,221.43,4.5164]
[1737118952939,10.83948716,221.55,221.43,4.5164]
[1737118953139,10.83948716,221.49,221.32,0.8897]
[1737118953344,10.83948716,221.43,221.32,15.67948716]
[1737118953640,10.83948716,221.43,221.32,4.84]
[1737118953841,10.83948716,221.43,221.29,10.83948716]
[1737118954042,10.83948716,221.4,221.3,3.66344612]
[1737118954242,10.83948716,221.37,221.28,4.86]
[1737118954433,4.5188,221.32,221.28,4.86]
[1737118954635,2.8722,221.36,221.26,15.35938716]
[1737118955335,2.8722,221.36,221.26,10.83948716]
[1737118956541,4.5195,221.28,221.24,4.86]
[1737118956734,2.8722,221.36,221.26,10.83948716]
[1737118956934,1.4342,221.39,221.32,10.83948716]
[1737118957141,4.5177,221.37,221.32,10.83948716]
[1737118957642,1.4342,221.39,221.32,10.83948716]
[1737118957837,10.83948716,221.45,221.32,10.83948716]
[1737118958043,1.4486,221.44,221.32,10.83948716]
[1737118958443,1.4486,221.44,221.29,10.83948716]
[1737118958648,1.4486,221.44,221.3,3.67609758]
[1737118958940,1.4486,221.44,221.31,3.67609758]
[1737118959141,4.5179,221.37,221.3,4.5191]
[1737118959738,4.5181,221.35,221.28,21.76864868]
[1737118959941,17.24934868,221.42,221.25,4.86]
[1737118960142,1.4008,221.41,221.26,3.67819683]
[1737118960342,4.5188,221.32,221.27,3.67819683]
[1737118960542,4.5188,221.32,221.25,4.86]
[1737118960750,4.5188,221.32,221.26,3.67923379]
[1737118960951,4.519,221.31,221.27,3.68000458]
[1737118961154,4.519,221.31,221.28,3.68000458]
[1737118961347,1.4008,221.41,221.25,4.86]
[1737118961544,1.4008,221.41,221.26,3.68063066]
[1737118961745,1.4008,221.41,221.27,3.68063066]
[1737118962049,1.4008,221.41,221.28,3.68063066]
[1737118962350,1.4008,221.41,221.29,3.68063066]
[1737118962548,1.4008,221.41,221.25,4.86]
[1737118962850,1.4008,221.41,221.26,3.68107789]
[1737118963149,1.4008,221.41,221.27,3.68111198]
[1737118963347,1.4008,221.41,221.28,3.68111198]
[1737118963542,4.5183,221.34,221.29,3.68206634]
[1737118963744,4.5183,221.34,221.28,4.5195]
[1737118963939,1.4008,221.41,221.28,4.5195]
[1737118963940,1.4008,221.41,221.29,3.68213127]
[1737118964143,1.4008,221.41,221.28,4.5195]
[1737118964341,1.4008,221.41,221.26,4.5199]
[1737118964547,4.5194,221.29,221.27,3.68468553]
[1737118964748,4.5194,221.29,221.23,4.84]
[1737118964947,4.5194,221.29,221.24,3.68594034]
[1737118965149,4.5194,221.29,221.25,3.68585092]
[1737118965351,4.5194,221.29,221.23,4.84]
[1737118965549,4.5194,221.29,221.24,3.68629491]
[1737118965746,4.5194,221.29,221.25,3.68629491]
[1737118965947,4.5197,221.28,221.21,4.84]
[1737118966146,1.468,221.37,221.22,3.68744942]
[1737118966345,1.468,221.37,221.23,3.68744942]
[1737118966546,1.468,221.37,221.2,22.08934868]
[1737118966742,1.468,221.37,221.21,8.20892446]
[1737118966950,1.468,221.37,221.22,3.68812446]
[1737118967151,4.5197,221.28,221.2,17.24934868]
[1737118967359,4.5197,221.28,221.21,3.68914856]
[1737118967552,4.5198,221.27,221.22,4.5206]
[1737118967754,17.24934868,221.34,221.2,22.08934868]
[1737118968056,17.24934868,221.34,221.11,18.27879279]
[1737118968057,1.5036,221.33,221.15,17.24934868]
[1737118968444,1.5036,221.33,221.16,3.69507509]
[1737118968648,1.5036,221.33,221.16,4.522]
[1737118969152,1.5036,221.33,221.17,4.522]
[1737118969153,4.5211,221.22,221.17,4.522]
[1737118970956,4.5211,221.22,221.16,4.5221]
[1737118971754,1.5036,221.33,221.15,22.10934868]
[1737118971950,4.5197,221.28,221.21,4.521]
[1737118972253,1.5036,221.33,221.19,17.24934868]
[1737118972457,4.5195,221.29,221.23,4.5206]
[1737118974351,1.5036,221.33,221.19,17.24934868]
[1737118974651,4.5193,221.3,221.2,3.70130107]
[1737118974955,1.5036,221.33,221.25,4.5201]
[1737118974956,4.5191,221.31,221.25,4.5201]
[1737118975156,1.5036,221.33,221.23,17.24934868]
[1737118975357,1.5036,221.33,221.24,3.70103763]
[1737118975556,1.5036,221.33,221.28,4.5196]
[1737118976453,4.5185,221.34,221.28,4.5196]
[1737118976856,4.5182,221.35,221.3,4.5191]
[1737118978160,1.468,221.37,221.3,4.5191]
[1737118978356,4.5181,221.36,221.3,4.5191]
[1737118979060,4.5182,221.35,221.3,4.5191]
[1737118979453,1.468,221.37,221.28,10.78243941]
[1737118979760,1.4611,221.4,221.31,10.78243941]
[1737118979959,1.4611,221.4,221.28,10.78243941]
[1737118980255,4.518,221.36,221.29,4.5194]
[1737118980464,1.5037,221.39,221.29,4.5194]
[1737118981162,10.78243941,221.38,221.25,10.78243941]
[1737118981359,10.78243941,221.38,221.26,3.69930405]
[1737118981665,4.5188,221.33,221.28,4.5196]
[1737118981857,4.5188,221.33,221.25,10.78243941]
[1737118982164,4.5188,221.33,221.26,3.69930615]
[1737118982356,4.5188,221.33,221.26,4.5199]
[1737118982557,4.5184,221.34,221.26,10.78243941]
[1737118982758,10.78243941,221.38,221.26,10.78243941]
[1737118982958,10.78243941,221.38,221.3,4.5191]
[1737118983158,10.78243941,221.38,221.26,10.78243941]
[1737118983459,1.5037,221.39,221.14,13.59]
[1737118983460,10.78243941,221.35,221.14,13.59]
[1737118983666,4.518,221.36,221.28,10.78243941]
[1737118984059,1.5037,221.39,221.31,10.78243941]
[1737118984363,4.5176,221.38,221.31,10.78243941]
[1737118984556,1.5037,221.39,221.31,10.78243941]
[1737118985257,480.0,221.76,221.27,4.84]
[1737118985460,10.78243941,221.52,221.37,10.78243941]
[1737118985769,13.61,221.36,221.05,74.01199723]
[1737118985973,10.78243941,221.21,221.11,3.70804808]
[1737118986161,10.78243941,221.21,221.06,10.78243941]
[1737118986361,4.5218,221.18,221.11,3.71107064]
[1737118986573,4.4344,221.2,221.06,10.78243941]
[1737118986767,4.4344,221.2,221.11,3.7092946]
[1737118986964,4.4344,221.2,221.06,10.78243941]
[1737118987159,15.30423941,221.18,221.09,4.5234]
[1737118987362,17.30236491,221.1,220.9,35.80536421]
[1737118987568,17.30236491,221.06,220.9,18.5029993]
[1737118987766,17.30236491,221.02,220.92,10.69456643]
[1737118988170,17.30236491,221.02,220.93,4.5267]
[1737118988468,17.30236491,221.02,220.88,5.06]
[1737118988768,4.5255,221.0,220.88,5.06]
[1737118988964,17.30236491,220.98,220.86,6.16766643]
[1737118989372,17.30236491,220.98,220.82,84.6]
[1737118989567,17.30236491,221.02,220.82,84.6]
[1737118989869,17.30236491,220.98,220.82,84.6]
[1737118990267,21.82816491,220.98,220.84,4.5285]
[1737118990468,17.30236491,220.98,220.82,84.6]
[1737118990767,17.30236491,221.02,220.82,84.6]
[1737118990966,1.5067,221.03,220.85,17.30236491]
[1737118991569,1.5067,221.03,220.92,4.5269]
[1737118994377,1.5067,221.03,220.93,4.5266]
[1737118994876,4.5252,221.01,220.92,4.5269]
[1737118995075,1.5067,221.03,220.92,5.04]
[1737118996168,1.5067,221.03,220.9,9.5672]
[1737118996572,4.5258,220.98,220.9,5.04]
[1737118996971,1.5067,221.03,220.9,5.04]
[1737118997176,4.5254,221.0,220.91,4.5271]
[1737118997376,1.5067,221.03,220.85,17.30236491]
[1737118997577,1.5067,221.03,220.87,4.5279]
[1737118997578,4.5262,220.96,220.87,4.5279]
[1737118997774,4.5262,220.96,220.86,5.04]
[1737118998980,4.5262,220.96,220.87,4.5278]
[1737118999378,4.5262,220.96,220.85,5.04]
[1737119000278,17.30236491,221.02,220.85,5.04]
[1737119000681,17.30236491,220.98,220.85,5.04]
[1737119000877,4.5272,220.91,220.85,5.04]
[1737119001079,4.5272,220.91,220.82,89.64]
[1737119001483,4.5272,220.91,220.82,84.6]
[1737119001785,4.5272,220.91,220.84,4.5284]
[1737119002180,4.5274,220.9,220.84,4.5284]
[1737119002481,17.30236491,221.0,220.82,84.6]
[1737119002677,4.5264,220.95,220.82,84.6]
[1737119002881,17.30236491,221.0,220.82,84.6]
[1737119002882,17.30236491,221.0,220.87,4.5278]
[1737119003083,17.30236491,221.0,220.81,5.02]
[1737119003385,1.5067,221.03,220.67,84.72]
[1737119003386,4.528,220.88,220.76,17.30236491]
[1737119003581,4.528,220.88,220.77,5.04]
[1737119003782,4.5266,220.94,220.8,17.30236491]
[1737119004085,17.30236491,220.99,220.8,17.30236491]
[1737119004883,4.5267,220.94,220.8,17.30236491]
[1737119005081,18.80906491,221.03,220.84,17.30236491]
[1737119005382,18.80906491,221.03,220.89,4.5274]
[1737119005584,18.80906491,221.03,220.84,17.30236491]
[1737119006290,4.5264,220.95,220.88,4.5276]
[1737119006785,4.5293,220.81,220.75,4.5304]
[1737119006983,17.30236491,220.91,220.7,17.30236491]
[1737119007179,4.3799,220.9,220.74,17.30236491]
[1737119007384,4.3799,220.9,220.81,4.529]
[1737119007585,4.3799,220.9,220.74,17.30236491]
[1737119007979,4.3799,220.9,220.77,4.5299]
[1737119008297,4.3799,220.9,220.74,17.30236491]
[1737119009191,4.3799,220.9,220.72,5.04]
[1737119009690,4.3799,220.9,220.74,17.30236491]
[1737119010082,4.528,220.87,220.81,4.5292]
[1737119010280,4.3799,220.9,220.74,17.30236491]
[1737119011189,2.839,220.9,220.74,17.30236491]
[1737119011389,2.884,220.97,220.82,17.30236491]
[1737119011585,2.884,220.97,220.82,22.34236491]
[1737119011994,4.5264,220.95,220.89,4.5275]
[1737119012195,2.884,220.97,220.82,22.34236491]
[1737119012398,2.884,220.97,220.82,5.04]
[1737119013196,4.5269,220.93,220.87,4.5278]
[1737119014598,2.884,220.97,220.88,4.5277]
[1737119014599,4.5265,220.94,220.88,4.5277]
[1737119015000,4.5265,220.94,220.83,5.02]
[1737119015396,4.5265,220.94,220.83,15.84539868]
[1737119015596,13.70939868,220.97,220.83,15.84539868]
[1737119015791,4.5264,220.95,220.83,15.84539868]
[1737119016502,4.5264,220.95,220.88,4.5276]
[1737119016801,4.5262,220.96,220.83,15.84539868]
[1737119017095,4.5262,220.96,220.86,10.82539868]
[1737119017699,4.5262,220.96,220.89,4.5276]
[1737119017999,4.5262,220.96,220.86,10.82539868]
[1737119018499,4.5263,220.95,220.86,10.82539868]
[1737119018895,2.884,220.97,220.89,4.5275]
[1737119019092,10.82539868,221.0,220.86,10.82539868]
[1737119019496,4.5259,220.97,220.92,4.5268]
[1737119019899,10.82539868,221.0,220.86,10.82539868]
[1737119020103,10.82539868,221.03,220.89,10.82539868]
[1737119020489,4.5255,221.0,220.89,10.82539868]
[1737119020691,4.5255,221.0,220.94,4.5264]
[1737119020998,10.82539868,221.03,220.94,4.5264]
[1737119021199,10.82539868,221.03,220.89,10.82539868]
[1737119021703,10.82539868,221.0,220.9,4.5273]
[1737119022100,10.82539868,220.97,220.85,24.67066573]
[1737119022304,4.5265,220.95,220.91,4.527]
[1737119023100,10.82539868,220.97,220.85,11.18766643]
[1737119023304,10.82539868,220.97,220.9,4.5273]
[1737119023504,1.5114,220.96,220.9,4.5273]
[1737119023802,4.5266,220.94,220.9,4.5273]
[1737119024508,4.5265,220.95,220.88,4.5277]
[1737119024704,1.5114,220.96,220.85,11.18766643]
[1737119025104,4.5266,220.94,220.88,4.5277]
[1737119025304,4.5266,220.94,220.85,11.18766643]
[1737119025500,1.5114,220.96,220.86,15.37580917]
[1737119025806,10.82539868,221.03,220.89,10.82539868]
[1737119026406,4.5253,221.01,220.95,4.5261]
[1737119026600,4.5253,221.01,220.89,10.82539868]
[1737119026806,4.5253,221.01,220.92,10.82539868]
[1737119028107,4.5253,221.01,220.96,4.5261]
[1737119028802,3.0637,221.04,220.96,4.5261]
[1737119029010,4.5249,221.02,220.98,4.5257]
[1737119029212,4.5249,221.02,220.92,10.82539868]
[1737119030009,4.5251,221.01,220.96,4.526]
[1737119030711,3.0637,221.04,220.92,10.82539868]
[1737119031102,3.0637,221.04,220.99,4.5256]
[1737119031705,7.5883,221.04,220.99,4.5256]
[1737119031917,6.0751,221.04,220.99,4.5256]
[1737119032503,4.5246,221.04,220.99,4.5256]
[1737119032718,1.5484,221.09,220.98,10.82539868]
[1737119033207,4.524,221.08,220.98,10.82539868]
[1737119033511,1.5484,221.09,220.96,6.16766643]
[1737119033708,4.5248,221.04,220.96,6.16766643]
[1737119033909,10.82539868,221.07,220.96,10.69366643]
[1737119034110,1.434,221.06,220.96,10.69366643]
[1737119034412,4.5254,221.01,220.96,4.526]
[1737119035913,4.5254,221.0,220.96,4.526]
[1737119036211,10.82539868,221.04,220.92,5.0]
[1737119036411,4.526,220.98,220.92,5.0]
[1737119037809,4.5256,221.0,220.95,4.5264]
[1737119038613,1.4516,221.03,220.92,15.82539868]
[1737119038914,4.5252,221.01,220.96,4.5262]
[1737119039308,1.4516,221.03,220.92,15.82539868]
[1737119039509,4.5254,221.0,220.95,4.5264]
[1737119040512,4.5261,220.97,220.92,9.527]
[1737119040713,10.82539868,220.95,220.84,6.16766643]
[1737119040914,10.82539868,220.92,220.84,6.16766643]
[1737119041414,10.82539868,220.92,220.78,5.0]
[1737119041814,12.26529868,220.95,220.8,10.82539868]
[1737119042112,1.4694,220.96,220.86,10.82539868]
[1737119042323,5.9651,221.02,220.95,4.5264]
[1737119042513,1.4399,221.02,220.95,4.5264]
[1737119042914,10.82539868,221.04,220.87,5.0]
[1737119042915,5.9765,221.03,220.97,4.5259]
[1737119043112,1.4516,221.03,220.92,10.82539868]
[1737119043315,1.4516,221.03,220.88,11.72489868]
[1737119043508,10.82539868,221.01,220.88,10.82539868]
[1737119043714,10.82539868,220.98,220.87,5.0]
[1737119044014,1.4847,220.97,220.87,5.0]
[1737119044217,4.5271,220.92,220.86,4.5282]
[1737119044816,4.5273,220.91,220.84,9.5285]
[1737119045222,4.5273,220.91,220.84,5.0]
[1737119045417,1.4053,220.96,220.84,5.0]
[1737119046020,4.5268,220.94,220.84,5.0]
[1737119046320,1.4847,220.97,220.84,5.0]
[1737119046521,4.5265,220.95,220.88,4.5279]
[1737119047520,4.5262,220.96,220.85,17.32034518]
[1737119048420,4.5267,220.94,220.85,17.32034518]
[1737119048621,1.4847,220.97,220.84,5.0]
[1737119048822,1.4847,220.97,220.85,4.5283]
[1737119049218,4.5275,220.9,220.85,4.5283]
[1737119049423,17.32034518,220.96,220.8,4.5294]
[1737119049825,4.5284,220.86,220.8,4.5294]
[1737119050422,4.5278,220.89,220.82,4.5289]
[1737119050622,1.4847,220.97,220.79,22.30034518]
[1737119050925,4.5277,220.89,220.83,4.5288]
[1737119051125,17.32034518,220.94,220.79,22.30034518]
[1737119051427,1.4746,220.93,220.79,4.98]
[1737119051720,1.4746,220.93,220.81,4.5293]
[1737119052024,1.4746,220.93,220.79,22.30034518]
[1737119052225,1.4847,220.97,220.83,17.32034518]
[1737119053724,1.4847,220.97,220.84,0.9002]
[1737119053922,1.4847,220.97,220.84,14.4902]
[1737119054126,1.4746,220.98,220.87,17.32034518]
[1737119054318,1.4746,220.98,220.88,5.0]
[1737119055828,4.527,220.93,220.88,5.0]
[1737119056022,1.4746,220.98,220.78,13.59]
[1737119056224,1.4746,220.98,220.79,4.98]
[1737119056629,4.5277,220.89,220.84,4.5286]
[1737119056824,1.4746,220.98,220.81,4.98]
[1737119057026,17.32034518,220.95,220.81,4.98]
[1737119057230,17.32034518,220.95,220.81,9.5092]
[1737119057430,17.32034518,220.95,220.81,4.98]
[1737119057631,4.5281,220.87,220.81,9.5091]
[1737119058024,4.5281,220.87,220.81,4.98]
[1737119058220,17.32034518,220.95,220.81,4.98]
[1737119058425,1.4746,220.98,220.81,4.98]
[1737119059027,4.5265,220.95,220.89,4.5275]
[1737119059231,1.4746,220.98,220.81,4.98]
[1737119059730,6.0006,220.98,220.81,18.57]
[1737119059934,1.4746,220.98,220.81,18.57]
[1737119060129,1.4746,220.98,220.86,17.32034518]
[1737119061933,4.5266,220.95,220.89,4.5275]
[1737119062228,1.4746,220.98,220.82,17.32034518]
[1737119062433,1.4746,220.98,220.81,4.98]
[1737119062829,1.4746,220.98,220.85,4.5283]
[1737119063131,1.4746,220.98,220.81,4.98]
[1737119063331,4.5279,220.88,220.81,4.98]
[1737119063633,17.32034518,220.95,220.81,4.98]
[1737119063935,4.5278,220.89,220.83,4.5288]
[1737119065135,17.32034518,220.95,220.81,4.98]
[1737119065435,1.4746,220.98,220.81,4.98]
[1737119066132,4.5268,220.93,220.81,4.98]
[1737119067031,9.0465,221.11,220.85,17.32034518]
[1737119067335,1.4174,221.0,220.85,17.32034518]
[1737119067932,1.4174,221.0,220.92,4.527]
[1737119068139,1.4174,221.0,220.85,17.32034518]
[1737119068338,4.5256,220.99,220.85,17.32034518]
[1737119069833,4.5261,220.97,220.91,4.5271]
[1737119070331,1.4174,221.0,220.91,4.5271]
[1737119070537,2.8785,221.0,220.88,4.5278]
[1737119070736,20.19884518,221.0,220.88,4.5278]
[1737119071332,4.5261,220.97,220.85,17.32034518]
[1737119071529,2.8785,221.0,220.85,17.32034518]
[1737119071935,4.5262,220.97,220.85,17.32034518]
[1737119072135,4.5262,220.97,220.91,4.527]
[1737119072633,4.5258,220.98,220.92,4.5269]
[1737119072940,4.5258,220.98,220.85,17.32034518]
[1737119073139,4.5258,220.98,220.88,4.5277]
[1737119073340,4.5258,220.98,220.85,17.32034518]
[1737119073937,4.526,220.97,220.85,17.32034518]
[1737119074445,4.526,220.97,220.92,4.527]
[1737119074740,4.5264,220.95,220.85,17.32034518]
[1737119074943,2.8785,221.0,220.9,4.5273]
[1737119076043,4.5262,220.96,220.9,4.5273]
[1737119076842,2.8785,221.0,220.85,17.32034518]
[1737119077645,2.8785,221.0,220.92,4.5269]
[1737119078241,1.4174,221.0,220.86,4.96]
[1737119078442,1.4174,221.0,220.89,17.32034518]
[1737119079248,1.4003,221.09,220.89,17.32034518]
[1737119079449,2.9809,221.08,220.89,17.32034518]
[1737119080347,4.5252,221.01,220.89,17.32034518]
[1737119080952,4.5254,221.0,220.95,4.5263]
[1737119081144,2.9809,221.08,220.95,4.5263]
[1737119081342,10.81871074,221.04,220.95,4.5263]
[1737119081543,10.81871074,221.04,220.96,4.5261]
[1737119082051,4.5253,221.01,220.96,4.5261]
[1737119082249,10.81871074,221.04,220.96,4.5261]
[1737119082550,4.5254,221.01,220.96,4.5261]
[1737119082752,10.81871074,221.04,220.96,4.5261]
[1737119082953,10.81871074,221.04,220.95,4.5263]
[1737119083356,4.5256,220.99,220.95,4.5263]
[1737119083555,4.5256,220.99,220.96,4.5261]
[1737119084652,10.81871074,221.04,220.96,4.5261]
[1737119084866,4.5254,221.0,220.96,4.5261]
[1737119085255,4.5254,221.0,220.97,4.5259]
[1737119085855,4.5248,221.03,221.0,4.5252]
[1737119086958,2.9809,221.08,220.96,10.81871074]
[1737119087253,2.9809,221.08,220.99,10.81871074]
[1737119087254,1.5133,221.08,220.99,10.81871074]
[1737119087561,13.76436763,221.17,221.02,10.81871074]
[1737119087562,10.81871074,221.15,221.02,10.81871074]
[1737119087951,10.81871074,221.15,221.03,3.7499446]
[1737119088154,2.9924,221.16,221.05,10.81871074]
[1737119088455,12.16161822,221.26,221.05,10.81871074]
[1737119088761,10.81871074,221.21,221.06,3.74496347]
[1737119088957,10.81871074,221.21,221.05,10.81871074]
[1737119089355,4.5219,221.17,221.05,17.28380204]
[1737119089556,4.5219,221.17,221.06,3.74048398]
[1737119089750,4.5219,221.17,221.05,17.28380204]
[1737119090050,17.28380204,221.19,221.06,3.74044285]
[1737119090256,17.28380204,221.15,221.0,3.73899037]
[1737119090455,4.3449,221.14,221.0,4.94]
[1737119090657,4.3449,221.14,221.01,4.5251]
[1737119091161,4.3449,221.14,221.0,4.94]
[1737119091162,17.28380204,221.11,221.0,4.94]
[1737119091354,17.28380204,221.11,220.93,4.94]
[1737119091558,17.28380204,221.07,220.94,3.74033204]
[1737119091760,17.28380204,221.07,220.93,4.94]
[1737119093069,4.525,221.02,220.96,4.5261]
[1737119093768,17.28380204,221.07,220.95,4.5264]
[1737119094263,17.28380204,221.07,220.93,4.94]
[1737119095065,4.5251,221.02,220.96,4.5262]
[1737119095755,4.5247,221.03,220.98,4.5257]
[1737119096061,17.28380204,221.11,220.95,17.28380204]
[1737119096268,4.3449,221.14,220.95,17.28380204]
[1737119096563,4.3449,221.14,220.99,17.28380204]
[1737119097162,4.5231,221.12,221.06,4.524]
[1737119097361,4.3449,221.14,221.06,4.524]
[1737119097755,4.3449,221.14,221.02,4.92]
[1737119097959,4.5234,221.1,221.04,4.5244]
[1737119098259,4.5234,221.1,221.02,4.92]
[1737119099056,4.5234,221.1,221.04,4.5245]
[1737119099666,17.28380204,221.12,220.95,17.28380204]
[1737119099966,17.28380204,221.08,220.93,4.92]
[1737119101069,4.5255,221.0,220.94,4.5264]
[1737119101663,4.5255,221.0,220.95,4.5263]
[1737119102468,17.28380204,221.04,220.88,17.28380204]
[1737119102768,17.28380204,221.04,220.89,3.74316264]
[1737119102769,4.3479,221.03,220.89,3.74316264]
[1737119102966,4.3479,221.03,220.9,3.74316264]
[1737119103169,4.5262,220.96,220.91,8.27036264]
[1737119103469,4.5262,220.96,220.91,4.5272]
[1737119103670,4.5261,220.97,220.91,4.5272]
[1737119104374,4.5262,220.96,220.88,17.28380204]
[1737119104564,4.3479,221.03,220.89,3.74570715]
[1737119104767,4.3479,221.03,220.9,3.74553911]
[1737119104969,1.4379,221.03,220.95,4.5263]
[1737119105170,17.28380204,221.1,220.96,4.92]
[1737119105365,17.28380204,221.14,220.96,4.92]
[1737119105770,17.28380204,221.14,220.96,22.20380204]
[1737119105967,17.28380204,221.14,220.97,3.74027487]
[1737119106169,17.28380204,221.14,220.96,22.20380204]
[1737119106170,4.5237,221.08,221.03,4.5245]
[1737119106673,1.4674,221.15,221.0,17.28380204]
[1737119107570,4.5233,221.1,221.0,17.28380204]
[1737119107965,1.4674,221.15,221.0,17.28380204]
[1737119108165,4.5231,221.12,221.05,4.5243]
[1737119108370,1.4674,221.15,221.05,4.5243]
[1737119109677,4.5235,221.1,221.05,4.5243]
[1737119110473,4.5231,221.11,221.07,4.5238]
[1737119110675,4.5231,221.11,221.01,3.73974191]
[1737119110979,1.4674,221.15,220.96,22.20380204]
[1737119111277,1.4674,221.15,220.97,4.9]
[1737119111479,4.5237,221.09,221.04,4.5245]
[1737119111676,4.5237,221.09,221.0,17.28380204]
[1737119112380,4.5237,221.09,221.01,3.74172561]
[1737119112679,4.5237,221.09,221.0,17.28380204]
[1737119112874,4.5236,221.08,221.01,3.74186737]
[1737119113080,1.4674,221.15,221.0,17.28380204]
[1737119113274,1.4674,221.15,221.04,4.5242]
[1737119113478,1.4674,221.15,221.0,17.28380204]
[1737119113678,1.4674,221.15,221.01,3.74149256]
[1737119113878,1.4674,221.15,221.04,17.28380204]
[1737119114079,4.5228,221.12,221.06,4.5239]
[1737119114284,1.4674,221.15,221.06,4.5239]
[1737119115782,4.5229,221.12,221.06,4.5239]
[1737119116282,4.523,221.11,221.06,4.5239]
[1737119116582,1.4674,221.15,221.07,4.5237]
[1737119117577,4.5228,221.12,221.08,4.5235]
[1737119118377,4.5228,221.12,221.07,4.5237]
[1737119118578,4.5226,221.13,221.04,17.28380204]
[1737119118786,1.4932,221.17,221.12,4.5226]
[1737119120079,1.4932,221.17,221.1,10.80022901]
[1737119120781,1.4932,221.17,221.14,4.5221]
[1737119120981,1.4932,221.17,221.1,10.80022901]
[1737119121284,1.5409,221.24,221.13,10.80022901]
[1737119121583,4.5199,221.26,221.21,4.5207]
[1737119122083,1.3966,221.29,221.19,10.80022901]
[1737119122383,4.5198,221.27,221.22,4.5206]
[1737119123382,4.2288,221.32,221.22,4.5206]
[1737119123583,4.5199,221.26,221.22,4.5206]
[1737119124283,4.5205,221.23,221.19,4.5211]
[1737119124483,4.5205,221.23,221.17,4.9]
[1737119125588,4.5203,221.24,221.17,4.9]
[1737119125986,4.2288,221.32,221.17,4.9]
[1737119126187,4.2288,221.32,221.21,4.5209]
[1737119126890,4.5197,221.27,221.17,4.9]
[1737119127186,4.2288,221.32,221.17,4.9]
[1737119127389,4.5201,221.26,221.21,4.5208]
[1737119128788,4.5201,221.25,221.21,4.5208]
[1737119129683,4.5197,221.27,221.22,4.5207]
[1737119129889,4.2288,221.32,221.17,4.9]
[1737119131092,4.5197,221.27,221.22,4.5205]
[1737119131892,21.49796073,221.32,221.17,4.9]
[1737119132089,21.49796073,221.32,221.11,17.26916073]
[1737119132293,4.5216,221.18,221.13,4.5224]
[1737119132589,17.26916073,221.28,221.08,17.26916073]
[1737119132887,4.5219,221.17,221.12,4.5226]
[1737119133093,17.26916073,221.24,221.08,22.14916073]
[1737119133288,4.4617,221.23,221.08,22.14916073]
[1737119133690,4.5216,221.18,221.12,4.5227]
[1737119133892,4.4617,221.23,221.08,22.14916073]
[1737119134093,4.5213,221.19,221.14,4.5223]
[1737119134294,4.4617,221.23,221.08,22.14916073]
[1737119135095,4.5211,221.2,221.12,4.5226]
[1737119135294,4.5211,221.2,221.08,22.14916073]
[1737119135494,4.4617,221.23,221.08,22.14916073]
[1737119135997,4.4617,221.23,221.08,4.86]
[1737119137098,4.5219,221.16,221.11,4.5229]
[1737119137494,4.4617,221.23,221.05,3.71836254]
[1737119137693,17.26916073,221.2,221.04,4.86]
[1737119138195,17.26916073,221.2,221.07,4.5236]
[1737119138898,4.5228,221.12,221.05,4.5242]
[1737119139098,4.5228,221.12,221.03,4.86]